bitfinex-derivatives/quotes_BNBF0:USTF0_20251002
["timestamp","ask_amount","ask_price","bid_price","bid_amount"]
[1759382613885,0.16912785,1029.3,1028.1,31.87964542]
[1759382616383,0.16912785,1029.3,1028.1,0.16912949]
[1759382640808,0.16912785,1029.3,1028.1,0.82082062]
[1759382644606,0.87126648,1029.7,1028.2,0.65169113]
[1759382644809,0.16910648,1029.5,1028.3,0.65169113]
[1759382645506,0.87126648,1029.9,1028.5,0.65169113]
[1759382645807,0.16907855,1029.7,1028.6,0.65169113]
[1759382646210,0.16907855,1029.7,1028.5,0.65169113]
[1759382646406,0.16907855,1029.7,1028.6,0.65169113]
[1759382647211,0.16907855,1029.7,1028.5,0.65169113]
[1759382647406,0.16907855,1029.7,1028.6,0.65169113]
[1759382651419,0.16907855,1029.7,1028.4,0.87129272]
[1759382651623,0.16907855,1029.7,1028.6,0.65221526]
[1759382651823,0.16907855,1029.7,1028.6,4.06407743]
[1759382655121,0.16907855,1029.7,1028.6,3.41186217]
[1759382665132,0.87126648,1030.2,1028.6,3.41186217]
[1759382665336,0.16903461,1029.9,1028.6,3.41186217]
[1759382675240,0.16903461,1029.9,1028.6,4.06407743]
[1759382675839,0.16903461,1029.9,1028.6,3.41186217]
[1759382683844,0.16903461,1029.9,1028.6,4.06407743]
[1759382685146,0.87126648,1030.4,1028.6,4.06407743]
[1759382685349,0.87126648,1030.4,1028.7,0.65221526]
[1759382685550,0.16901121,1030.1,1028.7,0.65221526]
[1759382686248,0.16901121,1030.1,1028.6,4.06407743]
[1759382686449,0.16901121,1030.1,1028.7,0.65221526]
[1759382687445,0.16901121,1030.1,1028.6,4.06407743]
[1759382689449,0.16901121,1030.1,1028.6,3.41186217]
[1759382689649,0.16901121,1030.1,1028.6,4.0621763]
[1759382694254,0.16901121,1030.1,1028.7,0.65031413]
[1759382694856,0.16901121,1030.1,1028.6,4.0621763]
[1759382696353,0.16901121,1030.1,1028.7,0.65031413]
[1759382700562,0.16901121,1030.1,1028.8,0.65031413]
[1759382702763,0.16901121,1030.1,1028.7,0.65031413]
[1759382703263,0.16901121,1030.1,1028.8,0.65031413]
[1759382712677,0.16901121,1030.1,1028.9,0.65031413]
[1759382713577,0.16901121,1030.1,1028.9,4.17138562]
[1759382715281,1.04027769,1030.1,1028.9,4.17138562]
[1759382715880,1.04027769,1030.1,1029.0,0.65031413]
[1759382721785,1.04027769,1030.1,1028.9,0.65031413]
[1759382723187,1.04027769,1030.1,1029.0,0.65031413]
[1759382724988,1.04027769,1030.1,1028.9,4.25117767]
[1759382725493,1.04027769,1030.1,1029.0,0.65031413]
[1759382727189,1.04027769,1030.1,1028.9,4.25117767]
[1759382732194,0.87126648,1029.9,1028.9,3.60086354]
[1759382733793,0.87126648,1029.8,1028.9,3.60086354]
[1759382734195,0.87126648,1029.8,1028.8,0.65031413]
[1759382734398,0.87126648,1029.9,1028.8,3.73017538]
[1759382735094,0.87126648,1029.8,1028.8,4.38048951]
[1759382735294,0.87126648,1029.9,1028.8,3.73017538]
[1759382737698,0.87126648,1029.9,1028.7,0.65031413]
[1759382743102,0.87126648,1030.0,1028.7,0.65031413]
[1759382753708,0.87126648,1029.9,1028.7,0.65031413]
[1759382757114,0.87126648,1030.0,1028.7,0.65031413]
[1759382757714,0.87126648,1029.9,1028.8,0.65031413]
[1759382757911,0.87126648,1030.0,1028.8,4.08604638]
[1759382759512,0.87126648,1030.0,1028.8,0.65031413]
[1759382761317,0.16901121,1030.1,1028.8,0.65031413]
[1759382761616,1.04027769,1030.1,1028.7,0.65031413]
[1759382764419,0.87126648,1030.0,1028.7,0.65031413]
[1759382766022,1.04027769,1030.1,1028.7,0.65031413]
[1759382773026,0.87126648,1030.0,1028.7,0.65031413]
[1759382774023,1.04027769,1030.1,1028.8,3.96124583]
[1759382774424,0.87126648,1029.9,1028.8,3.96124583]
[1759382774624,0.87126648,1030.0,1028.9,0.65031413]
[1759382786233,0.87126648,1030.0,1029.0,0.65031413]
[1759382786436,1.04027769,1030.1,1029.0,3.94543029]
[1759382786636,0.87126648,1030.0,1029.0,3.94543029]
[1759382786933,1.04027769,1030.1,1029.0,3.94543029]
[1759382787333,0.16901121,1030.1,1029.0,3.94543029]
[1759382787535,0.16901121,1030.1,1029.1,0.65031413]
[1759382790838,0.16901121,1030.1,1029.0,3.29511616]
[1759382791139,0.16901121,1030.1,1029.1,0.65189569]
[1759382799447,0.87126648,1030.5,1029.1,0.65189569]
[1759382799848,0.16895418,1030.4,1029.3,0.65189569]
[1759382800043,0.16895418,1030.4,1029.3,4.3115266]
[1759382801149,0.16895418,1030.4,1029.3,3.65963091]
[1759382802652,0.16895418,1030.4,1029.2,0.65189569]
[1759382806051,0.16895418,1030.4,1029.1,0.65189569]
[1759382807952,0.16895418,1030.4,1029.2,0.65189569]
[1759382808154,0.16895418,1030.4,1029.2,4.29872476]
[1759382813658,0.87126648,1031.2,1029.2,4.29872476]
[1759382814055,0.16892097,1030.5,1029.2,4.29872476]
[1759382814361,0.87126648,1031.2,1029.2,4.29872476]
[1759382814554,0.16891359,1030.5,1029.2,4.29872476]
[1759382814758,0.87126648,1031.2,1029.2,4.29872476]
[1759382814958,0.16891359,1030.5,1029.2,4.29872476]
[1759382815259,0.87126648,1031.3,1029.2,4.29872476]
[1759382815458,0.87126648,1031.2,1029.2,4.29872476]
[1759382815659,0.16891359,1030.5,1029.2,4.29872476]
[1759382815958,0.87126648,1031.2,1029.2,4.29872476]
[1759382816155,0.16891359,1030.5,1029.2,4.29872476]
[1759382816359,0.87126648,1031.2,1029.2,4.29872476]
[1759382816660,0.16891359,1030.5,1029.2,4.29872476]
[1759382816860,2.16470506,1032.6,1029.2,3.64682907]
[1759382816861,0.87126648,1031.4,1029.2,3.64682907]
[1759382817056,0.87126648,1031.2,1029.2,3.64682907]
[1759382817262,0.16893901,1030.2,1029.2,3.64682907]
[1759382817464,0.87126648,1031.1,1029.2,3.64682907]
[1759382817658,0.16894147,1030.2,1029.2,3.64682907]
[1759382818065,0.87126648,1031.1,1029.2,3.64682907]
[1759382818263,0.16894557,1030.2,1029.2,3.64682907]
[1759382818464,0.87126648,1031.1,1029.2,3.64682907]
[1759382818864,0.16894557,1030.2,1029.2,3.64682907]
[1759382819061,0.87126648,1031.1,1029.2,3.64682907]
[1759382819361,0.16894557,1030.2,1029.2,3.64682907]
[1759382819565,0.87126648,1031.1,1029.2,3.64682907]
[1759382819765,0.16894557,1030.2,1029.2,3.64682907]
[1759382820061,0.87126648,1031.1,1029.2,3.64682907]
[1759382820460,0.16894557,1030.2,1029.2,3.64682907]
[1759382820666,0.87126648,1031.1,1029.2,3.64682907]
[1759382820859,0.16894557,1030.2,1029.2,3.64682907]
[1759382821262,0.87126648,1030.9,1029.2,3.64682907]
[1759382821461,0.16894885,1030.1,1029.2,3.64682907]
[1759382821861,0.87126648,1030.9,1029.2,3.64682907]
[1759382822164,0.16895787,1030.1,1029.2,3.64682907]
[1759382822366,0.87126648,1030.9,1029.2,3.64682907]
[1759382822663,0.16895787,1030.1,1029.2,3.64682907]
[1759382822862,0.87126648,1030.9,1029.2,3.64682907]
[1759382823065,0.16895787,1030.1,1029.2,3.64682907]
[1759382823466,0.87126648,1030.8,1029.2,3.64682907]
[1759382823664,0.16896198,1030.1,1029.2,3.64682907]
[1759382823963,0.87126648,1030.8,1029.2,3.64682907]
[1759382824162,0.16896198,1030.1,1029.2,3.64682907]
[1759382824562,0.87126648,1030.8,1029.2,3.64682907]
[1759382824765,0.1689628,1030.1,1029.2,3.64682907]
[1759382824965,0.87126648,1030.9,1029.2,3.64682907]
[1759382825365,0.16895952,1030.1,1029.2,3.64682907]
[1759382825569,0.87126648,1030.9,1029.2,3.64682907]
[1759382825769,0.16896526,1030.0,1029.2,3.64682907]
[1759382826269,0.16896936,1030.0,1029.2,3.64682907]
[1759382839580,0.87126648,1030.6,1029.2,3.64682907]
[1759382839877,0.16896608,1030.2,1029.2,3.64682907]
[1759382845379,0.16896608,1030.2,1029.2,4.29872476]
[1759382845980,0.16896608,1030.2,1029.2,3.64682907]
[1759382846184,0.16896608,1030.2,1029.2,4.29872476]
[1759382854989,0.16896608,1030.2,1029.3,0.65189569]
[1759382871305,0.87126648,1030.7,1029.3,0.65189569]
[1759382871502,0.16894065,1030.4,1029.3,0.65189569]
[1759382875811,0.16894065,1030.4,1029.4,0.65189569]
[1759382877306,0.16894065,1030.4,1029.5,0.65189569]
[1759382877511,0.16894065,1030.4,1029.2,4.51812179]
[1759382877512,0.16894065,1030.4,1029.4,0.65189569]
[1759382881710,0.16894065,1030.4,1029.3,0.65189569]
[1759382882313,0.16894065,1030.4,1029.4,0.65189569]
[1759382886418,0.16894065,1030.4,1029.3,0.65189569]
[1759382896527,0.16894065,1030.4,1029.2,4.29872476]
[1759382899232,0.16894065,1030.4,1029.3,0.65189569]
[1759382899632,0.16894065,1030.4,1029.2,4.29872476]
[1759382902431,0.16894065,1030.4,1029.3,0.65189569]
[1759382903838,0.16894065,1030.4,1029.4,0.65189569]
[1759382904536,1.04020713,1030.4,1029.5,0.65189569]
[1759382905939,1.04020713,1030.4,1029.2,4.51812179]
[1759382906835,0.16894065,1030.4,1029.2,4.51812179]
[1759382910335,0.16894065,1030.4,1029.3,0.87129272]
[1759382911436,0.16894065,1030.4,1029.2,4.51812179]
[1759382913236,0.16894065,1030.4,1029.3,0.87129272]
[1759382914438,0.16894065,1030.4,1029.2,4.51812179]
[1759382916237,0.16894065,1030.4,1029.3,0.87129272]
[1759382916542,0.16894065,1030.4,1029.2,4.51812179]
[1759382919244,0.87126648,1030.6,1029.4,0.87129272]
[1759382919542,0.87126648,1030.7,1029.4,0.87129272]
[1759382919742,0.16892425,1030.7,1029.5,0.87129272]
[1759382922242,0.16892425,1030.7,1029.4,0.87129272]
[1759382922541,0.16892425,1030.7,1029.3,0.87129272]
[1759382922742,0.16892425,1030.7,1029.4,0.87129272]
[1759382922942,0.16892425,1030.7,1029.3,0.87129272]
[1759382924644,0.16892425,1030.7,1029.4,0.87129272]
[1759382927352,0.87126648,1031.1,1029.5,0.87129272]
[1759382927648,0.87126648,1031.1,1029.7,0.87129272]
[1759382927649,0.16887916,1030.9,1029.7,0.87129272]
[1759382929751,0.87126648,1031.2,1029.7,0.87129272]
[1759382929955,0.16884516,1031.1,1029.8,0.87129272]
[1759382930251,0.87126648,1032.0,1029.7,4.58077488]
[1759382930450,0.16880421,1031.5,1029.7,4.58077488]
[1759382930755,0.16880421,1031.5,1030.1,0.87129272]
[1759382931253,0.87126648,1032.3,1030.0,0.87129272]
[1759382931851,0.87126648,1032.3,1030.2,0.87129272]
[1759382932355,0.87126648,1032.4,1030.1,0.87129272]
[1759382932651,0.16872523,1031.8,1030.1,0.87129272]
[1759382933052,0.87126648,1032.5,1030.1,0.87129272]
[1759382933252,0.87126648,1032.5,1030.4,0.87129272]
[1759382933451,1.29104549,1032.6,1029.7,5.8812256]
[1759382933452,0.87126648,1032.6,1030.3,0.87129272]
[1759382933654,0.87126648,1032.6,1030.3,4.64373497]
[1759382934256,0.16867698,1032.1,1030.3,3.77244225]
[1759382936359,0.87126648,1033.0,1030.3,3.77244225]
[1759382936760,0.16865572,1032.2,1030.0,0.87129272]
[1759382936960,0.87126648,1032.9,1030.0,0.87129272]
[1759382937160,0.16867779,1032.1,1030.0,0.87129272]
[1759382937357,0.16867779,1032.1,1029.9,0.87129272]
[1759382937657,0.16867779,1032.1,1030.0,31.67566274]
[1759382937956,0.16867779,1032.1,1030.0,35.40751539]
[1759382938955,0.87126648,1033.1,1030.0,35.40751539]
[1759382939160,0.16868638,1032.0,1030.0,35.40751539]
[1759382939556,0.87126648,1032.7,1030.0,35.40751539]
[1759382940260,0.87126648,1032.6,1029.6,32.38584847]
[1759382940555,0.87126648,1032.6,1029.4,0.87129272]
[1759382940758,0.16875346,1031.9,1029.4,0.87129272]
[1759382942461,0.16875346,1031.9,1029.5,0.87129272]
[1759382942659,0.16875346,1031.9,1029.6,4.69012768]
[1759382942858,0.87126648,1033.2,1029.7,0.87129272]
[1759382943058,0.16870969,1032.1,1029.7,0.87129272]
[1759382943262,0.87126648,1033.2,1029.6,4.69012768]
[1759382943459,0.87126648,1033.1,1029.6,4.69012768]
[1759382943660,0.16868352,1032.1,1029.6,4.69012768]
[1759382943960,0.87126648,1033.2,1029.6,4.69012768]
[1759382944163,0.16869169,1032.1,1029.6,4.69012768]
[1759382944459,0.87126648,1033.2,1029.6,4.69012768]
[1759382944663,0.16868761,1032.1,1029.6,4.69012768]
[1759382944859,0.87126648,1033.2,1029.6,4.69012768]
[1759382945162,0.16868597,1032.1,1029.6,4.69012768]
[1759382945366,0.87126648,1033.2,1029.6,4.69012768]
[1759382945665,0.16867779,1032.2,1029.6,4.69012768]
[1759382945860,0.16867779,1032.2,1029.7,0.87129272]
[1759382946161,0.87126648,1033.2,1029.7,0.87129272]
[1759382946364,0.16867207,1032.2,1029.7,0.87129272]
[1759382946665,0.87126648,1033.1,1029.7,0.87129272]
[1759382946865,0.16866635,1032.3,1029.7,0.87129272]
[1759382947559,0.16866635,1032.3,1029.6,3.81883496]
[1759382947560,0.16866635,1032.3,1029.6,4.69012768]
[1759382947761,0.16866635,1032.3,1029.7,0.87129272]
[1759382949262,0.87126648,1033.5,1029.7,0.87129272]
[1759382949462,0.16863856,1032.5,1029.7,0.87129272]
[1759382949667,0.16863856,1032.5,1029.8,0.87129272]
[1759382952366,0.16863856,1032.5,1029.7,0.87129272]
[1759382952564,0.16863856,1032.5,1029.8,0.87129272]
[1759382953469,0.16863856,1032.5,1029.7,0.87129272]
[1759382953968,0.16863856,1032.5,1029.9,0.87129272]
[1759382954168,0.16863856,1032.5,1029.8,0.87129272]
[1759382957971,0.16863856,1032.5,1029.7,0.87129272]
[1759382960875,0.16863856,1032.5,1029.6,4.69012768]
[1759382961076,0.16863856,1032.5,1029.7,0.87129272]
[1759382961277,0.16863856,1032.5,1029.6,4.69012768]
[1759382962277,0.16863856,1032.5,1029.6,3.81883496]
[1759382972382,0.16863856,1032.5,1029.6,4.69012768]
[1759382972586,0.16863856,1032.5,1029.6,3.81883496]
[1759382973188,0.16863856,1032.5,1029.6,4.69012768]
[1759382973991,0.16863856,1032.5,1029.9,0.63803982]
[1759382975586,0.16863856,1032.5,1029.7,0.63803982]
[1759382975791,0.16863856,1032.5,1029.6,4.45687478]
[1759382978290,0.16863856,1032.5,1029.7,0.63803982]
[1759382979090,0.16863856,1032.5,1029.8,0.63803982]
[1759382979291,0.16863856,1032.5,1029.9,0.63803982]
[1759382981493,0.16863856,1032.5,1030.0,0.63803982]
[1759382982295,0.16863856,1032.5,1030.1,0.63803982]
[1759382983590,1.03990504,1032.5,1030.2,0.63803982]
[1759382983793,1.03990504,1032.5,1030.2,4.4910882]
[1759382985297,0.87126648,1032.4,1030.3,0.63803982]
[1759382985894,1.03990504,1032.5,1030.2,4.4910882]
[1759382986393,1.03990504,1032.5,1030.3,0.63803982]
[1759382987292,1.03990504,1032.5,1030.4,0.63803982]
[1759382987495,1.03990504,1032.5,1030.4,4.40025291]
[1759382988394,0.87126648,1032.4,1030.5,0.63803982]
[1759382989394,0.87126648,1032.3,1030.6,0.63803982]
[1759382994700,0.87126648,1032.3,1030.5,0.63803982]
[1759382995100,0.87126648,1032.2,1030.5,0.63803982]
[1759383001103,0.87126648,1032.2,1030.3,0.63803982]
[1759383002205,0.87126648,1032.1,1030.3,0.63803982]
[1759383002506,0.87126648,1032.0,1030.2,0.63803982]
[1759383002905,0.87126648,1032.0,1030.3,4.41928927]
[1759383003209,0.87126648,1032.0,1030.3,3.78124945]
[1759383005509,0.87126648,1031.8,1030.3,3.78124945]
[1759383005713,0.87126648,1032.0,1030.3,3.78124945]
[1759383005913,0.87126648,1032.4,1030.3,3.78124945]
[1759383006313,0.87126648,1032.3,1030.3,3.78124945]
[1759383006709,0.87126648,1032.1,1030.3,4.65254217]
[1759383008514,0.87126648,1032.1,1030.3,3.78124945]
[1759383009313,0.87126648,1032.1,1030.3,4.65254217]
[1759383009513,0.87126648,1032.1,1030.3,3.78124945]
[1759383010113,0.16863856,1032.5,1030.3,3.78124945]
[1759383010114,0.87126648,1032.4,1030.3,3.78124945]
[1759383011211,0.87126648,1032.3,1030.3,3.78124945]
[1759383013217,0.87126648,1032.1,1030.3,3.78124945]
[1759383014317,0.87126648,1031.9,1030.3,3.78124945]
[1759383016314,0.87126648,1031.8,1030.3,3.78124945]
[1759383020319,0.87126648,1032.0,1030.3,3.78124945]
[1759383020519,0.87126648,1031.9,1030.3,3.78124945]
[1759383022818,0.87126648,1031.7,1030.3,3.78124945]
[1759383023821,0.87126648,1031.5,1030.3,3.78124945]
[1759383025027,0.87126648,1031.4,1030.3,3.78124945]
[1759383025225,0.87126648,1031.5,1030.3,3.78124945]
[1759383028325,0.87126648,1031.6,1030.3,3.78124945]
[1759383028930,0.87126648,1031.5,1030.3,3.78124945]
[1759383030331,0.87126648,1031.6,1030.3,3.78124945]
[1759383031235,0.87126648,1031.5,1030.3,3.78124945]
[1759383031433,0.87126648,1031.6,1030.3,3.78124945]
[1759383033232,0.87126648,1031.5,1030.3,3.78124945]
[1759383036036,0.87126648,1031.4,1030.3,3.78124945]
[1759383037942,0.87126648,1031.5,1030.3,3.78124945]
[1759383040142,2.16470506,1032.6,1030.3,3.78124945]
[1759383040143,0.87126648,1031.4,1030.3,3.78124945]
[1759383040844,0.87126648,1031.5,1030.3,3.78124945]
[1759383046255,0.87126648,1031.4,1029.5,32.13476506]
[1759383046855,0.87126648,1031.1,1029.2,0.87129272]
[1759383048257,0.87126648,1031.1,1029.1,0.87129272]
[1759383049458,0.87126648,1031.2,1029.1,0.87129272]
[1759383052962,0.87126648,1031.2,1029.0,0.87129272]
[1759383054359,0.87126648,1031.1,1029.0,0.87129272]
[1759383054562,0.87126648,1031.2,1029.0,0.87129272]
[1759383057065,0.87126648,1031.1,1029.0,0.87129272]
[1759383057362,0.87126648,1031.2,1029.0,0.87129272]
[1759383058467,0.87126648,1031.1,1029.0,0.87129272]
[1759383059563,0.87126648,1031.2,1028.9,0.87129272]
[1759383064872,0.87126648,1031.3,1028.9,0.87129272]
[1759383067272,0.87126648,1031.2,1029.0,0.87129272]
[1759383067470,0.87126648,1031.2,1029.0,4.65201399]
[1759383070575,0.87126648,1031.3,1029.0,4.65201399]
[1759383073374,0.87126648,1031.2,1029.0,3.78072127]
[1759383074378,0.87126648,1031.1,1029.0,3.78072127]
[1759383074777,0.87126648,1031.2,1029.0,3.78072127]
[1759383074978,0.87126648,1030.9,1029.0,3.78072127]
[1759383076375,2.16470506,1032.3,1029.0,3.78072127]
[1759383076376,0.87126648,1030.8,1029.0,3.78072127]
[1759383083787,0.87126648,1030.7,1029.0,3.78072127]
[1759383085190,0.87126648,1030.6,1029.0,3.78072127]
[1759383088685,0.87126648,1030.5,1029.0,3.78072127]
[1759383088889,0.87126648,1030.6,1029.0,3.78072127]
[1759383091389,0.87126648,1030.5,1029.0,3.78072127]
[1759383091986,0.87126648,1030.6,1029.0,3.78072127]
[1759383092892,0.87126648,1030.5,1029.0,3.78072127]
[1759383095289,0.87126648,1030.6,1029.0,3.78072127]
[1759383095589,0.87126648,1030.5,1029.0,3.78072127]
[1759383095992,0.87126648,1030.6,1029.0,3.78072127]
[1759383098697,0.87126648,1030.6,1028.4,0.87129272]
[1759383100496,0.87126648,1030.5,1028.4,0.87129272]
[1759383100894,0.87126648,1030.6,1028.4,0.87129272]
[1759383101192,0.87126648,1030.6,1028.5,0.87129272]
[1759383101396,0.87126648,1030.6,1028.5,5.24997963]
[1759383101592,0.87126648,1030.5,1028.5,5.24997963]
[1759383102198,0.87126648,1030.5,1028.5,0.87129272]
[1759383104301,0.87126648,1030.4,1028.5,0.87129272]
[1759383104500,0.87126648,1030.5,1028.5,0.87129272]
[1759383105497,1.29104549,1030.7,1027.9,36.63952255]
[1759383105498,0.87126648,1030.4,1028.4,0.87129272]
[1759383107507,0.87126648,1030.4,1028.3,0.87129272]
[1759383109504,0.87126648,1030.4,1028.2,0.87129272]
[1759383114910,0.87126648,1030.4,1028.3,0.87129272]
[1759383115213,0.87126648,1030.4,1028.3,5.3533091]
[1759383116111,0.87126648,1030.5,1028.3,4.48201638]
[1759383116917,0.87126648,1030.4,1028.3,4.48201638]
[1759383118221,0.87126648,1030.3,1028.3,4.48201638]
[1759383119017,0.87126648,1030.3,1028.1,0.87129272]
[1759383121526,0.87126648,1030.1,1028.4,0.87129272]
[1759383121725,0.87126648,1030.1,1028.4,5.3067758]
[1759383122124,0.87126648,1030.2,1028.4,5.3067758]
[1759383122624,0.87126648,1030.2,1028.4,0.87129272]
[1759383123022,0.87126648,1030.3,1028.4,0.87129272]
[1759383123221,0.87126648,1030.2,1028.4,0.87129272]
[1759383124121,0.87126648,1030.2,1028.3,0.87129272]
[1759383125225,0.87126648,1030.2,1028.1,1.3004028]
[1759383125226,0.87126648,1030.2,1028.4,0.87129272]
[1759383125422,0.87126648,1030.2,1028.4,5.44223083]
[1759383127728,0.87126648,1030.3,1028.4,5.44223083]
[1759383128222,0.87126648,1030.2,1028.4,5.44223083]
[1759383130022,0.87126648,1030.2,1028.4,0.87129272]
[1759383130221,0.87126648,1030.3,1028.4,0.87129272]
[1759383130422,0.87126648,1030.3,1028.5,0.87129272]
[1759383130724,0.87126648,1030.3,1028.5,5.36208498]
[1759383131622,0.87126648,1030.3,1028.5,0.87129272]
[1759383132226,0.87126648,1030.2,1028.5,0.87129272]
[1759383132926,0.87126648,1030.2,1028.6,0.87129272]
[1759383133227,0.87126648,1030.2,1028.7,0.87129272]
[1759383133422,0.87126648,1030.3,1028.7,0.87129272]
[1759383134022,0.87126648,1030.3,1028.8,0.87129272]
[1759383134924,0.87126648,1030.4,1028.8,0.87129272]
[1759383135522,0.87126648,1030.4,1028.9,0.87129272]
[1759383135827,0.87126648,1030.4,1029.0,0.87129272]
[1759383136324,0.87126648,1030.5,1028.9,5.41312197]
[1759383140225,0.87126648,1030.6,1028.9,5.41312197]
[1759383143429,0.87126648,1030.6,1029.0,0.87129272]
[1759383143731,0.87126648,1030.6,1029.1,0.87129272]
[1759383144728,2.16470506,1031.6,1028.9,4.54182925]
[1759383144929,4.32941013,1032.6,1028.9,4.54182925]
[1759383146430,0.86940993,1030.6,1029.1,0.8674608]
[1759383147130,0.86940993,1030.7,1029.1,0.8674608]
[1759383149532,0.86940993,1030.7,1029.0,0.8674608]
[1759383149730,0.86940993,1030.7,1029.1,0.8674608]
[1759383150333,0.86940993,1030.7,1029.0,0.8674608]
[1759383150735,0.86940993,1030.8,1029.0,0.8674608]
[1759383153838,0.86940993,1030.9,1028.9,0.8674608]
[1759383154038,0.86940993,1030.8,1029.0,0.8674608]
[1759383154834,0.86940993,1030.8,1028.9,0.8674608]
[1759383156339,0.86940993,1031.0,1028.8,0.8674608]
[1759383158138,0.86940993,1031.1,1028.8,0.8674608]
[1759383158440,0.86940993,1031.0,1028.8,0.8674608]
[1759383159240,0.86940993,1031.1,1028.8,0.8674608]
[1759383159739,0.86940993,1031.0,1028.8,0.8674608]
[1759383160240,0.86940993,1031.1,1028.8,0.8674608]
[1759383160438,0.86940993,1031.1,1028.9,0.8674608]
[1759383160642,0.86940993,1030.9,1029.1,0.8674608]
[1759383162545,0.86940993,1031.0,1029.1,0.8674608]
[1759383163639,0.86940993,1030.9,1029.1,0.8674608]
[1759383165340,0.86940993,1031.0,1029.1,0.8674608]
[1759383167843,0.86940993,1031.3,1028.8,0.8674608]
[1759383170446,0.86940993,1031.4,1028.8,0.8674608]
[1759383170741,0.86940993,1031.2,1029.1,0.8674608]
[1759383171544,0.86940993,1031.3,1029.2,0.8674608]
[1759383171749,0.86940993,1031.3,1029.1,0.8674608]
[1759383174949,0.86940993,1031.4,1029.1,0.8674608]
[1759383176546,0.86940993,1031.5,1029.0,0.8674608]
[1759383182352,0.86940993,1031.5,1029.1,0.8674608]
[1759383182655,0.86940993,1031.5,1029.0,0.8674608]
[1759383184154,0.86940993,1031.5,1029.1,0.8674608]
[1759383184454,0.86940993,1031.4,1029.0,0.8674608]
[1759383184654,0.86940993,1031.5,1029.0,0.8674608]
[1759383184859,0.86940993,1031.4,1029.0,0.8674608]
[1759383185257,0.86940993,1031.4,1029.1,0.8674608]
[1759383186163,0.86940993,1031.5,1029.1,0.8674608]
[1759383186360,0.86940993,1031.3,1029.2,0.8674608]
[1759383186663,0.86940993,1031.3,1029.3,0.8674608]
[1759383187161,0.86940993,1031.3,1029.4,0.8674608]
[1759383187360,0.86940993,1031.3,1029.5,0.8674608]
[1759383188463,0.86940993,1031.3,1029.4,0.8674608]
[1759383189162,0.86940993,1031.3,1029.5,0.8674608]
[1759383192463,0.86940993,1031.6,1029.4,0.8674608]
[1759383192960,0.86940993,1031.5,1029.4,0.8674608]
[1759383193165,0.86940993,1031.7,1029.2,0.8674608]
[1759383193369,0.86940993,1031.7,1029.3,0.8674608]
[1759383194064,0.86940993,1031.7,1030.0,0.8674608]
[1759383194866,0.86940993,1031.7,1029.9,0.8674608]
[1759383195361,0.86940993,1031.8,1029.7,0.8674608]
[1759383196162,0.86940993,1031.8,1029.6,0.8674608]
[1759383196663,0.86940993,1031.8,1029.5,0.8674608]
[1759383196967,0.86940993,1031.7,1029.5,0.8674608]
[1759383199370,0.86940993,1031.6,1029.6,0.8674608]
[1759383199571,0.86940993,1031.7,1029.5,0.8674608]
[1759383199770,0.86940993,1031.6,1029.6,0.8674608]
[1759383201573,0.86940993,1031.7,1029.6,0.8674608]
[1759383202170,0.86940993,1031.7,1029.8,0.8674608]
[1759383204275,0.86940993,1031.8,1029.8,0.8674608]
[1759383208977,0.86940993,1032.0,1029.8,0.8674608]
[1759383209277,0.86940993,1032.1,1029.8,0.8674608]
[1759383210477,0.86940993,1032.0,1029.9,0.8674608]
[1759383210675,0.86940993,1032.0,1029.9,7.94463169]
[1759383211077,0.86940993,1031.9,1029.9,7.94463169]
[1759383211277,0.86940993,1032.0,1029.9,7.94463169]
[1759383214779,0.86940993,1032.0,1029.9,7.07717089]
[1759383216384,0.86940993,1032.1,1029.9,7.94463169]
[1759383217684,0.86940993,1032.0,1029.9,7.94463169]
[1759383218683,0.16875714,1031.7,1029.9,7.94463169]
[1759383220890,0.16875714,1031.7,1030.0,0.8674608]
[1759383221389,0.86940993,1033.0,1029.9,7.07717089]
[1759383221589,0.16872114,1032.1,1029.9,7.94463169]
[1759383221787,0.86940993,1033.0,1029.9,7.94463169]
[1759383222192,0.16868433,1032.1,1029.9,7.94463169]
[1759383222388,0.86940993,1033.0,1029.9,7.07717089]
[1759383222690,0.16868433,1032.1,1029.9,7.07717089]
[1759383222993,0.86940993,1033.1,1029.9,7.07717089]
[1759383223190,0.16868433,1032.1,1029.9,7.07717089]
[1759383223493,0.86940993,1033.0,1029.9,7.07717089]
[1759383223695,0.16868433,1032.1,1029.9,7.07717089]
[1759383223994,0.86940993,1033.0,1029.9,7.07717089]
[1759383224391,0.16868433,1032.1,1029.9,7.94463169]
[1759383224691,0.86940993,1032.8,1030.0,0.8674608]
[1759383224993,0.16868842,1032.1,1030.0,0.8674608]
[1759383225191,0.16868842,1032.1,1030.3,0.8674608]
[1759383225389,0.16868842,1032.1,1030.4,0.8674608]
[1759383226395,0.16868842,1032.1,1030.3,0.8674608]
[1759383226691,0.86940993,1032.7,1030.3,0.8674608]
[1759383226892,0.16866635,1032.3,1030.3,0.8674608]
[1759383229593,0.16866635,1032.3,1030.2,0.8674608]
[1759383230193,0.16866635,1032.3,1030.1,0.8674608]
[1759383230497,0.16866635,1032.3,1030.2,0.8674608]
[1759383230696,0.16866635,1032.3,1030.1,0.8674608]
[1759383231899,0.16866635,1032.3,1029.9,7.94463169]
[1759383232300,0.16866635,1032.3,1030.0,0.8674608]
[1759383232601,0.16866635,1032.3,1030.1,0.8674608]
[1759383233096,0.16866635,1032.3,1030.0,0.8674608]
[1759383233699,0.16866635,1032.3,1030.1,0.8674608]
[1759383236001,0.16866635,1032.3,1030.0,0.8674608]
[1759383236901,0.16866635,1032.3,1030.1,0.8674608]
[1759383237300,0.16866635,1032.3,1030.0,0.8674608]
[1759383237500,0.16866635,1032.3,1030.1,0.8674608]
[1759383238303,0.16866635,1032.3,1029.9,7.94463169]
[1759383240504,0.16866635,1032.3,1030.0,0.8674608]
[1759383241601,0.16866635,1032.3,1030.1,0.8674608]
[1759383241801,0.16866635,1032.3,1030.2,0.8674608]
[1759383243306,0.16866635,1032.3,1030.3,0.8674608]
[1759383243503,0.16866635,1032.3,1030.4,0.8674608]
[1759383244405,0.16866635,1032.3,1030.5,0.8674608]
[1759383248205,0.16866635,1032.3,1030.6,0.8674608]
[1759383248409,0.16866635,1032.3,1030.5,0.8674608]
[1759383249206,0.16866635,1032.3,1030.6,0.8674608]
[1759383250209,0.16866635,1032.3,1030.3,0.8674608]
[1759383250408,0.16866635,1032.3,1030.2,0.8674608]
[1759383251414,0.16866635,1032.3,1030.4,0.8674608]
[1759383253311,0.16866635,1032.3,1030.5,0.8674608]
[1759383259718,0.16866635,1032.3,1030.4,1.30119121]
[1759383259719,0.16866635,1032.3,1030.6,0.8674608]
[1759383265231,0.16866635,1032.3,1030.7,0.8674608]
[1759383265432,0.16866635,1032.3,1030.6,0.8674608]
[1759383267827,0.16866635,1032.3,1030.5,0.8674608]
[1759383268229,0.16866635,1032.3,1030.6,0.8674608]
[1759383268728,0.16866635,1032.3,1030.3,0.8674608]
[1759383270128,0.16866635,1032.3,1030.4,0.8674608]
[1759383270832,0.16866635,1032.3,1030.3,0.8674608]
[1759383272734,0.16866635,1032.3,1030.4,0.8674608]
[1759383273035,1.03807628,1032.3,1030.4,0.8674608]
[1759383273438,0.86940993,1032.1,1030.3,0.8674608]
[1759383274037,0.86940993,1031.9,1030.3,0.8674608]